fUSD/lending_fUSD_20241223
["ID","MTS","AMOUNT","RATE_DAILY","PERIOD"]
[346478952,1734994244271,-1121.03,0.00013972,2]
[346478953,1734994244281,-708.75,0.00013972,2]
[346478954,1734994244290,-813.32,0.00013972,2]
[346478955,1734994244299,-1038.62,0.00013972,2]
[346478956,1734994244308,-1655.23,0.00013972,2]
[346478957,1734994244317,-741.06,0.00013972,2]
[346478958,1734994244326,-615.49,0.00013972,2]
[346478959,1734994244335,-500.0,0.00013972,2]
[346478960,1734994244344,-1401.75,0.00013972,2]
[346478961,1734994244354,-500.0,0.00013972,2]
[346478962,1734994244363,-587.91,0.00013972,2]
[346478963,1734994244377,-500.0,0.00013972,2]
[346478964,1734994244387,-500.0,0.00013972,2]
[346478965,1734994244396,-567.74,0.00013972,2]
[346478966,1734994244406,-500.0,0.00013972,2]
[346478967,1734994244416,-511.98,0.00013972,2]
[346478968,1734994244425,-646.29,0.00013972,2]
[346478969,1734994244435,-500.0,0.00013972,2]
[346478970,1734994244445,-542.65,0.00013972,2]
[346478971,1734994244455,-500.0,0.00013972,2]
[346478972,1734994244464,-667.21,0.00013972,2]
[346478973,1734994244473,-930.71,0.00013972,2]
[346478974,1734994244483,-1232.18,0.00013972,2]
[346478975,1734994244493,-500.0,0.00013972,2]
[346478976,1734994244502,-513.54,0.00013972,2]
[346478977,1734994244512,-1234.51,0.00013972,2]
[346478978,1734994244521,-500.0,0.00013972,2]
[346478979,1734994244531,-838.69,0.00013972,2]
[346478980,1734994244541,-1611.8,0.00013972,2]
[346478981,1734994244551,-500.0,0.00013972,2]
[346478982,1734994244560,-500.0,0.00013972,2]
[346478983,1734994244570,-1372.06,0.00013972,2]
[346478984,1734994244579,-732.62,0.00013972,2]
[346478985,1734994244589,-571.62,0.00013972,2]
[346478986,1734994244598,-620.07,0.00013972,2]
[346478987,1734994244607,-680.43,0.00013972,2]
[346478988,1734994244617,-809.86,0.00013972,2]
[346478989,1734994244627,-1344.02,0.00013972,2]
[346478990,1734994244636,-1466.8,0.00013972,2]
[346478991,1734994244647,-1534.73,0.00013972,2]
[346478992,1734994244656,-1585.71,0.00013972,2]
[346478993,1734994244666,-536.88052585,0.00013972,2]
[346478994,1734994244675,-1091.25,0.00013972,2]
[346478995,1734994244685,-587.88,0.00013972,2]
[346478996,1734994244694,-623.7,0.00013972,2]
[346478997,1734994244704,-899.22,0.00013972,2]
[346478998,1734994244714,-500.0,0.00013972,2]
[346478999,1734994244723,-151.0,0.00013972,2]
[346479000,1734994244733,-151.0,0.00013972,2]
[346479001,1734994244742,-151.0,0.00013972,2]
[346479002,1734994244751,-151.0,0.00013972,2]
[346479003,1734994244761,-297.205467,0.00013972,2]
[346479004,1734994244771,-1178.9,0.00013972,2]
[346479005,1734994244780,-346.533882,0.00013972,2]
[346479006,1734994244790,-539.13,0.00013972,2]
[346479007,1734994244799,-346.533882,0.00013972,2]
[346479008,1734994244808,-346.533882,0.00013972,2]
[346479009,1734994244818,-346.533882,0.00013972,2]
[346479010,1734994244828,-346.533882,0.00013972,2]
[346479011,1734994244837,-500.0,0.00013972,2]
[346479012,1734994244846,-500.0,0.00013972,2]
[346479013,1734994244855,-911.82,0.00013972,2]
[346479014,1734994244865,-346.533882,0.00013972,2]
[346479015,1734994244874,-346.533882,0.00013972,2]
[346479016,1734994244883,-346.533882,0.00013972,2]
[346479017,1734994244894,-838.08,0.00013972,2]
[346479018,1734994244904,-346.533882,0.00013972,2]
[346479019,1734994244913,-346.533882,0.00013972,2]
[346479020,1734994244923,-687.17,0.00013972,2]
[346479021,1734994244933,-778.94,0.00013972,2]
[346479022,1734994244942,-500.0,0.00013972,2]
[346479023,1734994244952,-853.9,0.00013972,2]
[346479024,1734994244961,-500.0,0.00013972,2]
[346479025,1734994244971,-670.81,0.00013972,2]
[346479026,1734994244980,-500.0,0.00013972,2]
[346479027,1734994244990,-791.95,0.00013972,2]
[346479028,1734994245000,-500.0,0.00013972,2]
[346479029,1734994245010,-874.28,0.00013972,2]
[346479030,1734994245019,-907.94,0.00013972,2]
[346479031,1734994245029,-652.75,0.00013972,2]
[346479032,1734994245038,-330.87856537,0.00013972,2]
[346479033,1734994245048,-841.05,0.00013972,2]
[346479034,1734994245058,-500.0,0.00013972,2]
[346479035,1734994245068,-1421.32,0.00013972,2]
[346479036,1734994245078,-500.0,0.00013972,2]
[346479037,1734994245087,-500.0,0.00013972,2]
[346479038,1734994245097,-500.0,0.00013972,2]
[346479039,1734994245106,-500.0,0.00013972,2]
[346479040,1734994245115,-500.0,0.00013972,2]
[346479041,1734994245125,-776.56,0.00013972,2]
[346479042,1734994245136,-843.98,0.00013972,2]
[346479043,1734994245146,-1607.71,0.00013972,2]
[346479044,1734994245155,-604.35,0.00013972,2]
[346479045,1734994245164,-1328.16,0.00013972,2]
[346479046,1734994245173,-329.090771,0.00013972,2]
[346479047,1734994245183,-329.090771,0.00013972,2]
[346479048,1734994245191,-329.090771,0.00013972,2]
[346479049,1734994245201,-329.090771,0.00013972,2]
[346479050,1734994245210,-329.090771,0.00013972,2]
[346479051,1734994245219,-500.0,0.00013972,2]
[346479052,1734994245228,-501.03,0.00013972,2]
[346479053,1734994245237,-329.090771,0.00013972,2]
[346479054,1734994245247,-329.090771,0.00013972,2]
[346479055,1734994245256,-329.090771,0.00013972,2]
[346479056,1734994245265,-329.090771,0.00013972,2]
[346479057,1734994245274,-504.46,0.00013972,2]
[346479058,1734994245283,-329.090771,0.00013972,2]
[346479059,1734994245293,-500.0,0.00013972,2]
[346479060,1734994245302,-1377.9,0.00013972,2]
[346479061,1734994245311,-500.0,0.00013972,2]
[346479062,1734994245320,-500.0,0.00013972,2]
[346479063,1734994245330,-1070.82,0.00013972,2]
[346479064,1734994245339,-500.0,0.00013972,2]
[346479065,1734994245349,-1178.16,0.00013972,2]
[346479066,1734994245358,-700.86,0.00013972,2]
[346479067,1734994245369,-500.0,0.00013972,2]
[346479068,1734994245381,-822.94,0.00013972,2]
[346479069,1734994245391,-500.0,0.00013972,2]
[346479070,1734994245400,-912.06,0.00013972,2]
[346479071,1734994245411,-1616.21,0.00013972,2]
[346479072,1734994245422,-726.64,0.00013972,2]
[346479073,1734994245431,-661.67,0.00013972,2]
[346479074,1734994245441,-574.64,0.00013972,2]
[346479075,1734994245452,-855.17,0.00013972,2]
[346479076,1734994245461,-1667.54,0.00013972,2]
[346479077,1734994245470,-702.16,0.00013972,2]
[346479078,1734994245479,-500.0,0.00013972,2]
[346479079,1734994245489,-636.38,0.00013972,2]
[346479080,1734994245498,-1519.05,0.00013972,2]
[346479081,1734994245507,-1771.64,0.00013972,2]
[346479082,1734994245516,-500.0,0.00013972,2]
[346479083,1734994245526,-151.0,0.00013972,2]
[346479084,1734994245536,-151.0,0.00013972,2]
[346479085,1734994245545,-151.0,0.00013972,2]
[346479086,1734994245554,-151.0,0.00013972,2]
[346479087,1734994245564,-151.0,0.00013972,2]
[346479088,1734994245573,-500.0,0.00013972,2]
[346479089,1734994245583,-1014.09,0.00013972,2]
[346479090,1734994245593,-500.0,0.00013972,2]
[346479091,1734994245603,-151.0,0.00013972,2]
[346479092,1734994245613,-500.0,0.00013972,2]
[346479093,1734994245623,-151.0,0.00013972,2]
[346479094,1734994245632,-250.742416,0.00013972,2]
[346479095,1734994245642,-500.0,0.00013972,2]
[346479096,1734994245651,-500.0,0.00013972,2]
[346479097,1734994245661,-500.0,0.00013972,2]
[346479098,1734994245670,-500.0,0.00013972,2]
[346479099,1734994245685,-1528.34,0.00013972,2]
[346479100,1734994245694,-500.0,0.00013972,2]
[346479101,1734994245704,-1151.35,0.00013972,2]
[346479102,1734994245713,-904.52,0.00013972,2]
[346479103,1734994245723,-1006.91,0.00013972,2]
[346479104,1734994245733,-500.0,0.00013972,2]
[346479105,1734994245742,-500.0,0.00013972,2]
[346479106,1734994245752,-500.0,0.00013972,2]
[346479107,1734994245761,-527.64,0.00013972,2]
[346479108,1734994245769,-151.0,0.00013972,2]
[346479109,1734994245779,-151.0,0.00013972,2]
[346479110,1734994245789,-151.0,0.00013972,2]
[346479111,1734994245798,-1629.73,0.00013972,2]
[346479112,1734994245808,-151.0,0.00013972,2]
[346479113,1734994245818,-298.695155,0.00013972,2]
[346479114,1734994245827,-661.64,0.00013972,2]
[346479115,1734994245836,-810.27,0.00013972,2]
[346479116,1734994245847,-500.0,0.00013972,2]
[346479117,1734994245856,-500.0,0.00013972,2]
[346479118,1734994245865,-837.48,0.00013972,2]
[346479119,1734994245874,-550.13,0.00013972,2]
[346479120,1734994245883,-288.56529715,0.00013972,2]
[346479121,1734994245893,-500.0,0.00013972,2]
[346479122,1734994245902,-1583.74,0.00013972,2]
[346479123,1734994245912,-500.0,0.00013972,2]
[346479124,1734994245921,-151.0,0.00013972,2]
[346479125,1734994245930,-783.53,0.00013972,2]
[346479126,1734994245940,-151.0,0.00013972,2]
[346479127,1734994245949,-151.0,0.00013972,2]
[346479128,1734994245959,-151.0,0.00013972,2]
[346479129,1734994245968,-151.0,0.00013972,2]
[346479130,1734994245977,-500.0,0.00013972,2]
[346479131,1734994245987,-500.0,0.00013972,2]
[346479132,1734994245996,-500.0,0.00013972,2]
[346479133,1734994246005,-500.0,0.00013972,2]
[346479134,1734994246015,-545.31,0.00013972,2]
[346479135,1734994246024,-757.01,0.00013972,2]
[346479136,1734994246034,-1239.88,0.00013972,2]
[346479137,1734994246043,-1026.57,0.00013972,2]
[346479138,1734994246052,-500.0,0.00013972,2]
[346479139,1734994246344,-500.0,0.00013972,2]
[346479141,1734994246354,-500.0,0.00013972,2]
[346479142,1734994246363,-737.96,0.00013972,2]
[346479143,1734994246375,-500.0,0.00013972,2]
[346479144,1734994246384,-813.29,0.00013972,2]
[346479145,1734994246394,-563.16,0.00013972,2]
[346479146,1734994246403,-500.0,0.00013972,2]
[346479147,1734994246412,-784.29,0.00013972,2]
[346479148,1734994246422,-500.0,0.00013972,2]
[346479149,1734994246431,-765.69,0.00013972,2]
[346479150,1734994246441,-500.0,0.00013972,2]
[346479151,1734994246451,-500.0,0.00013972,2]
[346479152,1734994246461,-649.18,0.00013972,2]
[346479153,1734994246470,-500.0,0.00013972,2]
[346479154,1734994246479,-650.97,0.00013972,2]
[346479155,1734994246488,-1144.45,0.00013972,2]
[346479156,1734994246497,-500.0,0.00013972,2]
[346479157,1734994246507,-697.03,0.00013972,2]
[346479158,1734994246516,-500.0,0.00013972,2]
[346479159,1734994246525,-521.87,0.00013972,2]
[346479160,1734994246535,-701.88,0.00013972,2]
[346479161,1734994246544,-1773.43,0.00013972,2]
[346479162,1734994246554,-913.26,0.00013972,2]
[346479163,1734994246563,-923.35,0.00013972,2]
[346479164,1734994246572,-1765.27,0.00013972,2]
[346479165,1734994246581,-500.0,0.00013972,2]
[346479166,1734994246591,-500.0,0.00013972,2]
[346479167,1734994246600,-500.0,0.00013972,2]
[346479168,1734994246609,-1029.68,0.00013972,2]
[346479169,1734994246619,-1348.65,0.00013972,2]
[346479170,1734994246628,-881.21,0.00013972,2]
[346479171,1734994246637,-500.0,0.00013972,2]
[346479172,1734994246646,-428.573174,0.00013972,2]
[346479173,1734994246655,-428.573174,0.00013972,2]
[346479174,1734994246664,-428.573174,0.00013972,2]
[346479175,1734994246673,-428.573174,0.00013972,2]
[346479176,1734994246682,-500.0,0.00013972,2]
[346479177,1734994246692,-428.573174,0.00013972,2]
[346479178,1734994246701,-1175.74,0.00013972,2]
[346479179,1734994246710,-428.573174,0.00013972,2]
[346479180,1734994246719,-428.573174,0.00013972,2]
[346479181,1734994246729,-428.573174,0.00013972,2]
[346479182,1734994246738,-1072.32,0.00013972,2]
[346479183,1734994246747,-581.16,0.00013972,2]
[346479184,1734994246756,-428.573174,0.00013972,2]
[346479185,1734994246766,-917.3,0.00013972,2]
[346479186,1734994246775,-428.573174,0.00013972,2]
[346479187,1734994246784,-363.66787154,0.00013972,2]
[346479188,1734994246794,-828.82,0.00013972,2]
[346479189,1734994246803,-500.0,0.00013972,2]
[346479190,1734994246812,-500.0,0.00013972,2]
[346479191,1734994246821,-500.0,0.00013972,2]
[346479192,1734994246831,-1034.39,0.00013972,2]
[346479193,1734994246840,-1577.98,0.00013972,2]
[346479194,1734994246850,-946.3,0.00013972,2]
[346479195,1734994246859,-670.16,0.00013972,2]
[346479196,1734994246868,-1226.22,0.00013972,2]
[346479197,1734994246878,-783.34,0.00013972,2]
[346479198,1734994246887,-816.56,0.00013972,2]
[346479199,1734994246897,-500.0,0.00013972,2]
[346479202,1734994246906,-151.0,0.00013972,2]
[346479204,1734994246916,-151.0,0.00013972,2]
[346479206,1734994246925,-151.0,0.00013972,2]
[346479208,1734994246935,-151.0,0.00013972,2]
[346479210,1734994246944,-151.0,0.00013972,2]
[346479212,1734994246954,-2081.19,0.00013972,2]
[346479214,1734994246963,-151.0,0.00013972,2]
[346479216,1734994246972,-151.0,0.00013972,2]
[346479218,1734994246981,-275.033809,0.00013972,2]
[346479220,1734994246990,-680.96,0.00013972,2]
[346479222,1734994247000,-683.49,0.00013972,2]
[346479224,1734994247009,-810.03,0.00013972,2]
[346479227,1734994247021,-500.0,0.00013972,2]
[346479229,1734994247030,-527.61,0.00013972,2]
[346479231,1734994247039,-3271.1,0.00013972,2]
[346479233,1734994247048,-500.76,0.00013972,2]
[346479234,1734994247057,-1867.08,0.00013972,2]
[346479236,1734994247066,-1747.64,0.00013972,2]
[346479238,1734994247076,-602.88,0.00013972,2]
[346479240,1734994247085,-2823.61,0.00013972,2]
[346479243,1734994247094,-670.12,0.00013972,2]
[346479245,1734994247103,-1730.2,0.00013972,2]
[346479247,1734994247112,-500.0,0.00013972,2]
[346479248,1734994247122,-500.0,0.00013972,2]
[346479250,1734994247131,-1012.45,0.00013972,2]
[346479252,1734994247140,-500.0,0.00013972,2]
[346479254,1734994247149,-500.0,0.00013972,2]
[346479257,1734994247158,-866.88,0.00013972,2]
[346479259,1734994247167,-617.61,0.00013972,2]
[346479261,1734994247176,-916.03,0.00013972,2]
[346479263,1734994247185,-1282.58,0.00013972,2]
[346479265,1734994247194,-500.0,0.00013972,2]
[346479267,1734994247203,-759.39,0.00013972,2]
[346479269,1734994247212,-426.92955828,0.00013972,2]
[346479271,1734994247222,-2822.91,0.00013972,2]
[346479273,1734994247231,-2702.86,0.00013972,2]
[346479275,1734994247240,-500.0,0.00013972,2]
[346479277,1734994247248,-945.82,0.00013972,2]
[346479279,1734994247257,-860.56,0.00013972,2]
[346479281,1734994247266,-1535.62,0.00013972,2]
[346479283,1734994247275,-1192.87,0.00013972,2]
[346479284,1734994247284,-500.0,0.00013972,2]
[346479286,1734994247293,-184.315206,0.00013972,2]
[346479288,1734994247303,-500.0,0.00013972,2]
[346479289,1734994247312,-151.0,0.00013972,2]
[346479290,1734994247321,-500.0,0.00013972,2]
[346479291,1734994247330,-151.0,0.00013972,2]
[346479292,1734994247339,-151.0,0.00013972,2]
[346479293,1734994247348,-5687.76,0.00013972,2]
[346479294,1734994247357,-1436.13,0.00013972,2]
[346479295,1734994247367,-151.0,0.00013972,2]
[346479296,1734994247380,-151.0,0.00013972,2]
[346479297,1734994247389,-500.0,0.00013972,2]
[346479298,1734994247399,-500.0,0.00013972,2]
[346479299,1734994247409,-9709.27,0.00013972,2]
[346479300,1734994247419,-500.0,0.00013972,2]
[346479301,1734994247428,-505.55,0.00013972,2]
[346479302,1734994247437,-498.09866887,0.00013972,2]
[346479303,1734994247446,-500.0,0.00013972,2]
[346479304,1734994247457,-544.6,0.00013972,2]
[346479305,1734994247467,-500.0,0.00013972,2]
[346479306,1734994247476,-500.0,0.00013972,2]
[346479307,1734994247486,-4532.78,0.00013972,2]
[346479308,1734994247496,-500.0,0.00013972,2]
[346479309,1734994247505,-816.85,0.00013972,2]
[346479310,1734994247515,-500.0,0.00013972,2]
[346479311,1734994247524,-500.0,0.00013972,2]
[346479312,1734994247534,-2193.05,0.00013972,2]
[346479313,1734994247544,-1565.850996,0.00013972,2]
[346479314,1734994247553,-890.71,0.00013972,2]
[346479315,1734994247563,-500.0,0.00013972,2]
[346479316,1734994247572,-500.0,0.00013972,2]
[346479317,1734994247582,-935.33,0.00013972,2]
[346479318,1734994247591,-924.6,0.00013972,2]
[346479319,1734994247600,-500.0,0.00013972,2]
[346479320,1734994247610,-1741.469511,0.00013972,2]
[346479321,1734994247620,-1424.69,0.00013972,2]
[346479322,1734994247629,-151.0,0.00013972,2]
[346479323,1734994247638,-707.310492,0.00013972,2]
[346479324,1734994247648,-151.0,0.00013972,2]
[346479325,1734994247658,-707.310492,0.00013972,2]
[346479326,1734994247667,-151.0,0.00013972,2]
[346479327,1734994247677,-707.310492,0.00013972,2]
[346479328,1734994247686,-151.0,0.00013972,2]
[346479329,1734994247695,-707.310492,0.00013972,2]
[346479330,1734994247705,-513.35,0.00013972,2]
[346479331,1734994247714,-500.0,0.00013972,2]
[346479332,1734994247724,-151.0,0.00013972,2]
[346479333,1734994247734,-707.310492,0.00013972,2]
[346479334,1734994247743,-707.310492,0.00013972,2]
[346479335,1734994247752,-1656.35,0.00013972,2]
[346479336,1734994247762,-707.310492,0.00013972,2]
[346479337,1734994247771,-707.310492,0.00013972,2]
[346479338,1734994247780,-832.6,0.00013972,2]
[346479339,1734994247790,-707.310492,0.00013972,2]
[346479340,1734994247799,-707.310492,0.00013972,2]
[346479341,1734994247809,-151.0,0.00013972,2]
[346479342,1734994247818,-151.0,0.00013972,2]
[346479343,1734994247828,-151.0,0.00013972,2]
[346479344,1734994247837,-500.0,0.00013972,2]
[346479345,1734994247846,-7626.12,0.00013972,2]
[346479346,1734994247855,-151.0,0.00013972,2]
[346479347,1734994247865,-151.0,0.00013972,2]
[346479348,1734994247874,-500.0,0.00013972,2]
[346479349,1734994247883,-632.69,0.00013972,2]
[346479350,1734994247893,-1545.09,0.00013972,2]
[346479351,1734994247903,-500.0,0.00013972,2]
[346479352,1734994247913,-508.13,0.00013972,2]
[346479353,1734994247923,-500.0,0.00013972,2]
[346479354,1734994247933,-1521.82,0.00013972,2]
[346479355,1734994247942,-1055.98,0.00013972,2]
[346479356,1734994247952,-437.24700518,0.00013972,2]
[346479357,1734994247961,-500.0,0.00013972,2]
[346479358,1734994247970,-150.0,0.00013972,2]
[346479359,1734994247980,-500.0,0.00013972,2]
[346479360,1734994247990,-161.95584072,0.00013972,2]
[346479361,1734994247999,-500.0,0.00013972,2]
[346479362,1734994248008,-500.0,0.00013972,2]
[346479363,1734994248018,-1313.98,0.00013972,2]
[346479364,1734994248027,-4455.6,0.00013972,2]
[346479365,1734994248036,-500.0,0.00013972,2]
[346479366,1734994248046,-500.0,0.00013972,2]
[346479367,1734994248056,-784.14,0.00013972,2]
[346479368,1734994248066,-150.0,0.00013972,2]
[346479369,1734994248075,-845.04,0.00013972,2]
[346479370,1734994248084,-1667.62,0.00013972,2]
[346479371,1734994248094,-1189.32,0.00013972,2]
[346479372,1734994248103,-289.98161,0.00013972,2]
[346479373,1734994248112,-289.98161,0.00013972,2]
[346479374,1734994248122,-289.98161,0.00013972,2]
[346479375,1734994248131,-289.98161,0.00013972,2]
[346479376,1734994248141,-289.98161,0.00013972,2]
[346479377,1734994248150,-500.0,0.00013972,2]
[346479378,1734994248160,-831.37,0.00013972,2]
[346479379,1734994248169,-500.0,0.00013972,2]
[346479380,1734994248179,-1900.85,0.00013972,2]
[346479381,1734994248188,-725.43,0.00013972,2]
[346479382,1734994248197,-289.98161,0.00013972,2]
[346479383,1734994248207,-289.98161,0.00013972,2]
[346479384,1734994248216,-289.98161,0.00013972,2]
[346479385,1734994248226,-289.98161,0.00013972,2]
[346479386,1734994248235,-289.98161,0.00013972,2]
[346479387,1734994248244,-828.98,0.00013972,2]
[346479388,1734994248253,-917.85,0.00013972,2]
[346479389,1734994248263,-609.89,0.00013972,2]
[346479390,1734994248272,-2092.67,0.00013972,2]
[346479391,1734994248281,-977.08,0.00013972,2]
[346479392,1734994248290,-565.84,0.00013972,2]
[346479393,1734994248299,-500.0,0.00013972,2]
[346479394,1734994248308,-1232.7,0.00013972,2]
[346479395,1734994248318,-500.0,0.00013972,2]
[346479396,1734994248327,-3185.26,0.00013972,2]
[346479397,1734994248336,-1329.31,0.00013972,2]
[346479398,1734994248346,-500.0,0.00013972,2]
[346479399,1734994248355,-500.0,0.00013972,2]
[346479400,1734994248365,-4535.24,0.00013972,2]
[346479401,1734994248378,-2652.97,0.00013972,2]
[346479402,1734994248387,-5420.92,0.00013972,2]
[346479403,1734994248398,-500.0,0.00013972,2]
[346479404,1734994248408,-580.7,0.00013972,2]
[346479405,1734994248418,-500.0,0.00013972,2]
[346479406,1734994248427,-745.35,0.00013972,2]
[346479407,1734994248437,-7948.779203,0.00013972,2]
[346479408,1734994248447,-7948.779203,0.00013972,2]
[346479409,1734994248457,-1687.7,0.00013972,2]
[346479410,1734994248466,-3278.19,0.00013972,2]
[346479411,1734994248476,-12692.34,0.00013972,2]
[346479412,1734994248485,-7948.779203,0.00013972,2]
[346479413,1734994248495,-508.83374998,0.00013972,2]
[346479414,1734994248504,-7948.779203,0.00013972,2]
[346479415,1734994248514,-7948.779203,0.00013972,2]
[346479416,1734994248523,-7948.779203,0.00013972,2]
[346479417,1734994248533,-7948.779203,0.00013972,2]
[346479418,1734994248543,-500.0,0.00013972,2]
[346479419,1734994248552,-7948.779203,0.00013972,2]
[346479420,1734994248562,-7948.779203,0.00013972,2]
[346479421,1734994248572,-1003.48,0.00013972,2]
[346479422,1734994248582,-7948.779203,0.00013972,2]
[346479423,1734994248591,-1152.85,0.00013972,2]
[346479424,1734994248601,-2287.23,0.00013972,2]
[346479425,1734994248611,-2925.17,0.00013972,2]
[346479426,1734994248620,-2268.35,0.00013972,2]
[346479427,1734994248632,-500.0,0.00013972,2]
[346479428,1734994248641,-721.37,0.00013972,2]
[346479429,1734994248650,-1310.46,0.00013972,2]
[346479430,1734994248661,-500.0,0.00013972,2]
[346479431,1734994248670,-1600.63,0.00013972,2]
[346479432,1734994248679,-569.25,0.00013972,2]
[346479433,1734994248689,-500.0,0.00013972,2]
[346479434,1734994248698,-500.0,0.00013972,2]
[346479435,1734994248707,-500.0,0.00013972,2]
[346479436,1734994248717,-500.0,0.00013972,2]
[346479437,1734994248726,-1053.02,0.00013972,2]
[346479438,1734994248735,-500.0,0.00013972,2]
[346479439,1734994248745,-1741.39,0.00013972,2]
[346479440,1734994248754,-2507.15,0.00013972,2]
[346479441,1734994248763,-1355.74,0.00013972,2]
[346479442,1734994248773,-500.0,0.00013972,2]
[346479443,1734994248782,-711.23,0.00013972,2]
[346479444,1734994248791,-500.0,0.00013972,2]
[346479445,1734994248800,-500.0,0.00013972,2]
[346479446,1734994248809,-500.0,0.00013972,2]
[346479447,1734994248818,-901.69,0.00013972,2]
[346479448,1734994248827,-500.0,0.00013972,2]
[346479449,1734994248837,-1757.96,0.00013972,2]
[346479450,1734994248846,-1035.03,0.00013972,2]
[346479451,1734994248855,-594.32,0.00013972,2]
[346479452,1734994248864,-500.0,0.00013972,2]
[346479453,1734994248873,-500.0,0.00013972,2]
[346479454,1734994248883,-1403.45,0.00013972,2]
[346479455,1734994248893,-5763.91,0.00013972,2]
[346479456,1734994248903,-682.67,0.00013972,2]
[346479457,1734994248912,-2662.5,0.00013972,2]
[346479458,1734994248921,-765.55,0.00013972,2]
[346479459,1734994248930,-1701.0,0.00013972,2]
[346479460,1734994248940,-500.0,0.00013972,2]
[346479461,1734994248949,-2324.3,0.00013972,2]
[346479462,1734994248959,-1200.09,0.00013972,2]
[346479463,1734994248968,-500.0,0.00013972,2]
[346479464,1734994248977,-236.747922,0.00013972,2]
[346479465,1734994248987,-619.01468785,0.00013972,2]
[346479466,1734994248996,-236.747922,0.00013972,2]
[346479467,1734994249005,-236.747922,0.00013972,2]
[346479468,1734994249014,-1649.96,0.00013972,2]
[346479469,1734994249023,-236.747922,0.00013972,2]
[346479470,1734994249033,-236.747922,0.00013972,2]
[346479471,1734994249042,-710.17,0.00013972,2]
[346479472,1734994249051,-1049.45,0.00013972,2]
[346479473,1734994249060,-3057.43,0.00013972,2]
[346479474,1734994249069,-236.747922,0.00013972,2]
[346479475,1734994249079,-1525.0,0.00013972,2]
[346479476,1734994249091,-236.747922,0.00013972,2]
[346479477,1734994249101,-921.72,0.00013972,2]
[346479478,1734994249110,-236.747922,0.00013972,2]
[346479479,1734994249119,-236.747922,0.00013972,2]
[346479480,1734994249128,-236.747922,0.00013972,2]
[346479481,1734994249137,-2698.19,0.00013972,2]
[346479482,1734994249147,-2222.98,0.00013972,2]
[346479483,1734994249156,-2757.11,0.00013972,2]
[346479484,1734994249165,-332.11428594,0.00013972,2]
[346479485,1734994249175,-836.04,0.00013972,2]
[346479486,1734994249185,-747.45,0.00013972,2]
[346479487,1734994249195,-500.0,0.00013972,2]
[346479488,1734994249205,-2287.23,0.00013972,2]
[346479489,1734994249215,-1476.95,0.00013972,2]
[346479490,1734994249224,-513.47,0.00013972,2]
[346479491,1734994249234,-2943.9,0.00013972,2]
[346479492,1734994249244,-2131.6,0.00013972,2]
[346479493,1734994249253,-677.63,0.00013972,2]
[346479494,1734994249263,-500.24,0.00013972,2]
[346479495,1734994249272,-2675.56,0.00013972,2]
[346479496,1734994249281,-500.0,0.00013972,2]
[346479497,1734994249291,-3789.1,0.00013972,2]